Cogmind - Beta 11 @@@ ROGUE MODE // 2022.03.25 @ 10:04:40 Player: Iceblade02 Result: Destroyed by G-47 Trooper with Particle Gun Performance ------------- Evolutions (0) 0 Regions Visited (2) 400 Robots Destroyed (12) 60 Value Destroyed (425) 425 Prototype IDs (0) 0 Alien Tech Used (0) 0 Bonus (0) 0 TOTAL SCORE: 885 Bonus ------- None Cogmind --------- Core Integrity 0/250 Matter 210/300 Energy 66/100 System Corruption 1% Temperature Critical (711) Movement Walking (120) Location -10/Mines Parts ------- > --- POWER (1) -------- (None) > --- PROPULSION (2) --- Aluminum Leg Aluminum Leg > --- UTILITY (2) ------ Improved Heat Sink Small Storage Unit > --- WEAPON (2) ------- Beam Cannon > --- INVENTORY (8) ---- Ion Engine Large Storage Unit Sensor Array Terrain Scanner Small Laser Small Laser Beam Cannon Peak State ------------ > --- POWER ------------ Ion Engine > --- PROPULSION ------- Aluminum Leg Aluminum Leg > --- UTILITY ---------- Improved Heat Sink Small Storage Unit > --- WEAPON ----------- Beam Cannon Beam Cannon > --- INVENTORY -------- Ion Engine Heat Sink Terrain Scanner Small Laser Small Laser [Rating: 9] Favorites ----------- Power Ion Engine Engine Ion Engine Propulsion Aluminum Leg Leg Aluminum Leg Wheel Compact Wheel Utility Small Storage Unit Device Improved Heat Sink Storage Small Storage Unit Processor Signal Interpreter Weapon Beam Cannon Energy Gun Small Laser Energy Cannon Beam Cannon Build | -11 -10 -10 ------- Run | Scr Mat Min Slots Evolved . | . . . Power . | . . . Propulsion . | . . . Utility . | . . . Weapon . | . . . Parts Attached 19 | 6 11 2 Power 2 | 1 . 1 Engine 2 | 1 . 1 Core . | . . . Reactor . | . . . Propulsion 5 | 2 3 . Treads . | . . . Leg 3 | . 3 . Wheel 2 | 2 . . Hover . | . . . Flight . | . . . Utility 6 | 1 4 1 Device 4 | . 3 1 Storage 1 | 1 . . Processor 1 | . 1 . Hackware . | . . . Protection . | . . . Artifact . | . . . Weapon 6 | 2 4 . Energy Gun 2 | 2 . . Energy Cannon 4 | . 4 . Ballistic Gun . | . . . Ballistic Cannon . | . . . Launcher . | . . . Special Weapon . | . . . Impact Weapon . | . . . Slashing Weapon . | . . . Piercing Weapon . | . . . Special Melee Weapon . | . . . Unidentified Prototypes . | . . . Parts Lost 5 | . 3 2 Power 1 | . . 1 Propulsion 2 | . 2 . Utility 1 | . 1 . Weapon 1 | . . 1 Highest Loss Streak 3 | . 3 2 To Critical Strikes . | . . . Average Slot Usage (%) 96 | . 95 100 Engine 14 | . 14 14 Leg 21 | . 19 28 Wheel 6 | . 8 . Device 7 | . 8 . Storage 14 | . 14 14 Processor 4 | . 1 14 Energy Gun 3 | . 4 . Energy Cannon 24 | . 23 28 Naked Turns . | . . . Heaviest Build 17 | 12 17 16 Greatest Support 32 | 32 32 20 Greatest Overweight (x) . | . . . Average Overweight (x) . | . . . Largest Inventory Capacity 8 | 8 8 8 Average Capacity 7 | 7 8 8 Most Carried 8 | 6 8 8 Average Carried 6 | 3 6 7 Final Capacity 8 | 8 8 8 Final Carried 8 | 6 8 7 Class Distribution -------------------- 100% | Mutant Dominant Class ---------------- Mutant | -10/Materials Mutant | -10/Mines Resources | -11 -10 -10 ----------- Run | Scr Mat Min Matter Collected 337 | 193 144 . Remotely . | . . . Salvage Created 494 | . 354 140 Parts 23 | . 16 7 Haulers Intercepted . | . . . Recyclers Shooed . | . . . Parts Field Recycled . | . . . Retrieved Matter . | . . . Parts Self-Destructed . | . . . Prevented . | . . . Kills | -11 -10 -10 ------- Run | Scr Mat Min Combat Hostiles Destroyed 11 | . 8 3 Cannons 11 | . 8 3 Classes Destroyed 3 | . 3 . Operator 1 | . 1 . Swarmer 1 | . 1 . Grunt 10 | . 7 3 Best Kill Streak 7 | . 7 3 Combat Bots Only 6 | . 6 3 Max Kills in Single Turn 2 | . 2 1 Gunslinging . | . . . Exploded . | . . . Melee . | . . . Uniques/NPCs Destroyed . | . . . Combat | -11 -10 -10 -------- Run | Scr Mat Min Damage Taken 855 | . 444 411 Core 255 | . 101 154 Absorbed by Shields . | . . . Core Remaining (%) 100 | 100 . . Volleys Fired 38 | . 20 18 Largest 2 | . 2 2 Hottest 120 | . 120 120 Shots Fired 59 | . 32 27 Gun . | . . . Cannon 59 | . 32 27 Launcher . | . . . Special . | . . . Kinetic . | . . . Thermal 59 | . 32 27 Explosive . | . . . Electromagnetic . | . . . Robot Hit Streak 5 | . 4 5 Robot Miss Streak 2 | . 2 2 Penetration Max . | . . . Secondary Targets . | . . . Shots Hit Robots 34 | . 18 16 Core Hits 16 | . 11 5 Critical Kills . | . . . Critical Parts Destroyed . | . . . Critical Strikes . | . . . Melee Attacks . | . . . Impact . | . . . Slashing . | . . . Piercing . | . . . Sneak Attacks . | . . . Combat Hostiles . | . . . Follow-up Attacks . | . . . Damage Inflicted 647 | . 366 281 Guns . | . . . Cannons 647 | . 366 281 Explosions . | . . . Melee . | . . . Ramming . | . . . Kinetic . | . . . Thermal 647 | . 366 281 Explosive . | . . . Electromagnetic . | . . . Impact . | . . . Slashing . | . . . Piercing . | . . . Highest Corruption 1 | . 1 1 Average Corruption 1 | . 1 1 Corruption Purged . | . . . Corruption Blocked . | . . . Effects 1 | . . 1 Message Errors 1 | . . 1 Overload Shots . | . . . Overflow Damage . | . . . Projectiles . | . . . Explosions . | . . . Melee . | . . . Knockbacks . | . . . Impact . | . . . Kinetic . | . . . Secondary . | . . . Self-Inflicted Damage . | . . . Shots . | . . . Rammed . | . . . Targets Rammed 1 | . 1 . Kicked 1 | . 1 . Crushed . | . . . Highest Temperature 741 | . 559 741 Average Temperature 304 | . 230 450 Received Heat Transfer 429 | . 255 174 Effects 30 | . 10 20 Shutdowns 2 | . 2 . Energy Bleed 5 | . 1 4 Interference 5 | . 5 . Matter Decay 1 | . . 1 Short Circuit 3 | . 1 2 Damage (minor) 5 | . . 5 Damage (major) 6 | . . 6 Damage (core) 3 | . 1 2 Siege Activations . | . . . Robots Corrupted . | . . . Combat Hostiles . | . . . Parts Fried . | . . . Impact Corruptions . | . . . Robots Melted . | . . . Combat Hostiles . | . . . Parts Melted 1 | . 1 . Heat Transferred 1369 | . 777 592 Parts Sabotaged . | . . . Parts Stolen . | . . . Parts Stripped . | . . . Power Chain Reactions . | . . . Missiles Intercepted . | . . . Alert | -11 -10 -10 ------- Run | Scr Mat Min Peak Influence 283 | . 283 101 Initial 31 | . . 31 Average 105 | . 136 53 Maximum Alert Level 1 | . 1 . Low Security (%) 81 | 100 74 100 Level 1 18 | . 25 . Level 2 . | . . . Level 3 . | . . . Level 4 . | . . . Level 5 . | . . . High Security . | . . . Max Security . | . . . Squads Dispatched 3 | . 3 . Investigation . | . . . Extermination . | . . . Reinforcement 3 | . 3 . Assault . | . . . Garrison . | . . . Intercept . | . . . Searches Triggered . | . . . Construction Impeded . | . . . Haulers Reinforced . | . . . Active Scanning Responses . | . . . Cargo Convoy Interrupts . | . . . Stealth | -11 -10 -10 --------- Run | Scr Mat Min Distress Signals 3 | . 3 . Communications Jammed . | . . . Distress Signals . | . . . Times Spotted 16 | . 12 4 Peak Tracking Total 6 | . 6 4 Tactical Retreats 2 | . 2 . Traps | -11 -10 -10 ------- Run | Scr Mat Min Traps Triggered 1 | . 1 . Indirectly . | . . . Trap Hack Attempts . | . . . Triggered . | . . . Disarmed . | . . . Reprogrammed . | . . . Reused . | . . . Traps Extracted . | . . . Installed . | . . . Triggered . | . . . Machines | -11 -10 -10 ---------- Run | Scr Mat Min Machines Disabled 2 | . 2 . Max in Single Turn 1 | . 1 . Machines Sabotaged . | . . . Garrisons Compromised . | . . . Overloaded Fab Kills . | . . . Hacking | -11 -10 -10 --------- Run | Scr Mat Min Machines Accessed 2 | . 2 . Terminals 2 | . 2 . Fabricators . | . . . Repair Stations . | . . . Recycling Units . | . . . Scanalyzers . | . . . Garrison Access . | . . . Total Hacks 8 | . 8 . Successful 3 | . 3 . Failed 4 | . 4 . Catastrophic . | . . . Database Lockouts 1 | . 1 . Manual 8 | . 8 . Terminals 8 | . 8 . Fabricators . | . . . Repair Stations . | . . . Recycling Units . | . . . Scanalyzers . | . . . Garrison Access . | . . . Terminal Hacks 1 | . 1 . Part Schematic 1 | . 1 . Fabricator Hacks . | . . . Repair Station Hacks . | . . . Recycling Unit Hacks . | . . . Scanalyzer . | . . . Garrison Access Hacks . | . . . Unauthorized Hacks 2 | . 2 . Terminals 2 | . 2 . Botnet 2 | . 2 . Fabricators . | . . . Repair Stations . | . . . Recycling Units . | . . . Scanalyzers . | . . . Garrison Access . | . . . Data Cores Recovered . | . . . Used . | . . . Hacking Detections 2 | . 2 . Full Trace Events . | . . . Feedback Events . | . . . Feedback Blocked . | . . . Robot Schematics Acquired . | . . . Robots Built . | . . . Authchips . | . . . Time . | . . . Total Robot Build Rating . | . . . Part Schematics Acquired 1 | . 1 . Parts Built . | . . . Authchips . | . . . Time . | . . . Total Part Build Rating . | . . . Parts Repaired . | . . . Time . | . . . Parts Recycled . | . . . Recycled Matter . | . . . Retrieved Matter . | . . . Retrieved Components . | . . . Parts Scanalyzed . | . . . Part Schematics Acquired . | . . . Parts Damaged . | . . . Bothacking | -11 -10 -10 ------------ Run | Scr Mat Min Used RIF Installer . | . . . Robots Hacked . | . . . Non-combat . | . . . Combat . | . . . Robot Hacks Applied . | . . . Relay Couplers Released . | . . . Fabnet Peak Effective % . | . . . Robots Rewired . | . . . Allies Hacked . | . . . Hacks Repelled . | . . . Allies | -11 -10 -10 -------- Run | Scr Mat Min Total Allies . | . . . Largest Group . | . . . Highest-Rated Group . | . . . Highest-Rated Ally . | . . . Total Orders . | . . . Ally Attacks . | . . . Total Damage . | . . . Kills . | . . . Allies Corrupted . | . . . Allies Melted . | . . . Intel | -11 -10 -10 ------- Run | Scr Mat Min Robot Analysis Total . | . . . Derelict Logs Recovered . | . . . Drone Launches . | . . . Drone Recoveries . | . . . Exploration | -11 -10 -10 ------------- Run | Scr Mat Min Turns Passed 617 | 72 434 111 Spaces Moved 387 | 59 288 40 Core 3 | 3 . . Treads . | . . . Legs 246 | . 206 40 Wheels 138 | 56 82 . Hover . | . . . Flight . | . . . Fastest Speed 50 | 50 100 120 Average Speed 112 | 97 114 120 Slowest Speed 120 | 100 120 120 Overloaded Moves . | . . . Propulsion Burnouts . | . . . Robots Hopped . | . . . Cave-ins Triggered . | . . . Exploration Rate (%) 22 | 4 46 17 Regions Visited 2 Branch Regions 1 Pre-discovered Areas . | . . . Known Exits Taken 1 | . 1 . Unknown Exits Taken 1 | 1 . . Scrap Searched . | . . . Spaces Dug . | . . . Terrain Destroyed . | . . . Melee . | . . . Projectile . | . . . AOE . | . . . Terrain Rammed . | . . . Walls Destroyed . | . . . Machines Disabled . | . . . Actions | -11 -10 -10 --------- Run | Scr Mat Min Total 507 | 70 361 76 Wait 41 | . 27 14 Move 385 | 58 287 40 Hop . | . . . Pick Up 13 | 6 6 1 Fast Attach 9 | 6 3 . Attach 3 | . 3 . Detach 2 | . 2 . Swap 7 | . 5 2 Drop 8 | . 7 1 Fire 38 | . 20 18 Melee . | . . . Ram . | . . . Kick 1 | . 1 . Crush . | . . . Escape Stasis . | . . . Rewire . | . . . Trap . | . . . Miscellaneous . | . . . Route ------- -11/Scrapyard -10/Materials (discovered 2 exits: *Mat / *Min) -10/Mines History --------- Turn | Location | Event 10 | -11/Scrapyard | Discovered new exit (range 14) 73 | -11/Scrapyard | Entered Materials 231 | -10/Materials | Lost 3 parts (2n1u) 254 | -10/Materials | Discovered new exit (range 16) 323 | -10/Materials | Build established: Mutant 325 | -10/Materials | Central database locked down 329 | -10/Materials | Discovered new exit (range 14) 452 | -10/Materials | Identified exit to Materials 505 | -10/Materials | Identified exit to Mines 507 | -10/Materials | Entered Mines 596 | -10/Mines | Core integrity fell below 50% 606 | -10/Mines | Core integrity fell below 20% 618 | -10/Mines | Destroyed by G-47 Trooper with Particle Gun Last Messages --------------- 00597_ Overheating: Short circuit. 00599_ Overheating: Energy bleed (-33). 00602_ Overheating: Matter decay (-62). 00604_ Overheating: Energy bleed (-30). 00605_ Overheating: Energy bleed (-32). 00606_ Overheating: Core damaged (-45). 00607_ Overheating: Aluminum Leg damaged (-31). 00610_ Overheating: Energy bleed (-18). 00610_ Ion Engine destroyed. 00613_ Overheating: Broken Signal Interpreter damaged (-11). 00613_ Overheating: Broken Beam Cannon damaged (-15). 00614_ Overheating: Aluminum Leg damaged (-8). 00616_ Overheating: Broken Beam Cannon damaged (-6). 00616_ Beam Cannon destroyed. 00617_ Overheating: Broken Beam Cannon damaged (-2). 00617_ Discarded Broken Signal Interpreter. 00618_ Overheating: Broken Beam Cannon damaged (-1). 00618_ Overheating: Sml. Storage Unit damaged (-43). 00618_ Overheating: Aluminum Leg damaged (-7). 00618_ Overheating: Aluminum Leg damaged (-3). Map ----- +----------------------------------------------------+ | ???????????????????????????????????????????????? | | ???????????????????????????????????????????????? | | ???????????????????????????????????????????????? | | ???????????????????????????????????????????????? | | ???????????????????????????????????????????????? | | ???????????????????????????????????????????????? | | ???????????????????????????????????????????????? | | ???????????????????????????????????????????????? | | ???????????????????????????????????????????????? | | ??????????????????????????? ???????????????????? | | ?????????????????????????? ???????????????????? | | ?????????????????????????? ???????????????????? | | ????????????????????????## #??????????????????? | | ?????#################?? #?????????????????? | | ?????# #??? ##???????????????? | | ?????# #??? ####????????????? | | ?????? #???? #????????????? | | ?????# """ """ #???? #????????????? | | ?????# """ """ #????? $ ?????????????? | | ?????# """ """ #????? #?????????????? | | ?????# #?????? ##????????????? | | ?????# """ """ """ #?????? #????????????? | | ?????# """ """ """ ####???# #????????????? | | ?????# """ """ """ [#???# #?????????????? | | ?????# ##%##### #???????????????? | | ?????# """ """ """ ##@g!==%= #???????????????? | | ??????? """ """ """ #######* #???????????????? | | ???????? """ """ """ #?????# #???????????????? | | ????????? #?????# ##???????????????? | | ?????????# ##########?????# #????????????????? | | ?????????# ????????????????# #????????????????? | | ?????????#?????????????????# #????????????????? | | ???????????????????????????# #????????????????? | | ??????????????????????????? ????????????????? | | ??????????????????????????? ????????????????? | | ??????????????????????????? ????????????????? | | ?????????????????????????? ???????????????? | | ?????????????????????????? ???????????????? | | ??????????????????????????## ???????????????? | | ???????????????????????????#### ???????????????? | | ???????????????????????????????##??????????????? | | ???????????????????????????????????????????????? | | ???????????????????????????????????????????????? | | ???????????????????????????????????????????????? | | ???????????????????????????????????????????????? | | ???????????????????????????????????????????????? | | ???????????????????????????????????????????????? | | ???????????????????????????????????????????????? | | ???????????????????????????????????????????????? | | ???????????????????????????????????????????????? | +----------------------------------------------------+ Best States ------------- Heat Dissipation 39 Energy Generation 10 Energy Capacity 250 Matter Stores 300 Matter Capacity 300 Sight Range 16 Robot Scan Range 14 Terrain Scan Density 10 Evasion (%) 55 Item Schematics ----------------- Flight Unit | -10/Materials | Hacked Robot Schematics ------------------ None Fabricated ------------ Nothing Alien Tech Used ----------------- None Achievements -------------- None Challenges ------------ None Game ------ Seed InsulationStormWeb Manual? 0 Play Time 00:12:36 Cumulative 11.8 hours Start 2022.03.25 @ 09:50:33 End 2022.03.25 @ 10:04:40 Sessions 1 Manual Loads 0 Difficulty Rogue Special Mode None Game No. 7 Rogue 7 Adventurer 0 Explorer 0 Win Type - Total 0 Types 0/0/0/0/0/0/0/0/0 Lore% 16 Gallery% 17 Achievement% 22 Wizard Run 0 Options --------- ASCII 0 Keyboard 0 Movement Arrows Keybinds 0 Fullscreen 1 Font 24/Smallcaps Map View 76x50 Tactical HUD 1 Map Filters NONE Filters NONE Steam 1 RUN: f7dcc145-e3ad-4a1b-8ffc-f3abde536635